bitfinex/quotes_SOLUSD_20241226
["timestamp","ask_amount","ask_price","bid_price","bid_amount"]
[1735198265202,20.0,193.74,193.63,7.17619336]
[1735198265407,23.776884,193.79,193.69,10.17211044]
[1735198265592,6.3538,193.8,193.71,10.17211044]
[1735198265789,20.0,193.77,193.72,10.17211044]
[1735198265991,10.17211044,193.81,193.74,10.17211044]
[1735198266307,15.99605632,193.81,193.74,15.99605632]
[1735198266512,15.99605632,193.81,193.73,15.99605632]
[1735198266809,15.99605632,193.8,193.73,15.99605632]
[1735198267222,15.99605632,193.79,193.72,15.99605632]
[1735198267392,15.99605632,193.78,193.71,15.99605632]
[1735198267883,15.99605632,193.78,193.69,1.5005]
[1735198268087,15.99605632,193.78,193.7,15.99605632]
[1735198268514,15.99605632,193.78,193.71,15.99605632]
[1735198269515,0.12549,193.83,193.72,15.99605632]
[1735198269516,15.99605632,193.79,193.72,15.99605632]
[1735198269720,15.99605632,193.81,193.7,0.12549]
[1735198270020,20.0,193.81,193.77,15.99605632]
[1735198270220,35.99605632,193.81,193.74,15.99605632]
[1735198270423,20.0,193.8,193.76,15.99605632]
[1735198270585,20.0,193.8,193.75,15.99605632]
[1735198271694,20.0,193.73,193.69,1.5005]
[1735198271902,15.99605632,193.78,193.69,17.49655632]
[1735198272104,20.0,193.75,193.71,15.99605632]
[1735198272444,15.99605632,193.81,193.73,15.99605632]
[1735198272624,20.0,193.78,193.73,15.99605632]
[1735198273324,15.99605632,193.77,193.7,16.12154632]
[1735198273530,20.0,193.76,193.72,15.99605632]
[1735198273705,20.0,193.78,193.72,15.99605632]
[1735198274508,15.99605632,193.81,193.74,15.99605632]
[1735198275115,15.99605632,193.78,193.7,15.99605632]
[1735198275321,15.99605632,193.76,193.68,15.99605632]
[1735198276113,15.99605632,193.76,193.67,15.99605632]
[1735198276324,15.99605632,193.76,193.69,15.99605632]
[1735198276945,12.8997,193.81,193.69,15.99605632]
[1735198276946,15.99605632,193.78,193.69,15.99605632]
[1735198277238,15.99605632,193.78,193.71,15.99605632]
[1735198278310,15.99605632,193.82,193.73,15.99605632]
[1735198279234,15.99605632,193.8,193.73,15.99605632]
[1735198281205,15.99605632,193.82,193.71,1.5202]
[1735198281411,15.99605632,193.82,193.75,15.99605632]
[1735198281618,20.0,193.79,193.71,1.5202]
[1735198281821,20.0,193.77,193.72,15.99605632]
[1735198283338,15.99605632,193.8,193.72,15.99605632]
[1735198283636,20.0,193.81,193.72,15.99605632]
[1735198283837,20.0,193.79,193.72,15.99605632]
[1735198285148,20.0,193.77,193.7,15.99605632]
[1735198285311,15.99605632,193.78,193.7,15.99605632]
[1735198285821,20.0,193.75,193.7,15.99605632]
[1735198286414,15.99605632,193.78,193.7,15.99605632]
[1735198286628,15.99605632,193.78,193.66,15.20354841]
[1735198286629,15.99605632,193.8,193.72,15.99605632]
[1735198286809,15.99605632,193.82,193.74,15.99605632]
[1735198288216,15.99605632,193.8,193.72,15.99605632]
[1735198288418,15.99605632,193.82,193.74,15.99605632]
[1735198289924,15.99605632,193.8,193.72,15.99605632]
[1735198290123,15.99605632,193.82,193.74,15.99605632]
[1735198290739,15.99605632,193.82,193.72,15.99605632]
[1735198290941,15.99605632,193.8,193.72,15.99605632]
[1735198291240,15.99605632,193.78,193.7,15.99605632]
[1735198292143,10.24099781,193.77,193.69,10.24099781]
[1735198292313,10.24099781,193.75,193.67,10.24099781]
[1735198293437,20.0,193.71,193.66,11.76119781]
[1735198294024,1.6073,193.78,193.68,10.24099781]
[1735198294230,20.0,193.77,193.71,15.99950197]
[1735198296039,15.99950197,193.81,193.74,15.99950197]
[1735198296238,15.99950197,193.81,193.72,15.99950197]
[1735198296420,15.99950197,193.79,193.72,15.99950197]
[1735198296911,15.99950197,193.77,193.7,15.99950197]
[1735198297720,20.0,193.74,193.7,15.99950197]
[1735198298347,20.0,193.74,193.68,15.99950197]
[1735198298641,20.0,193.74,193.66,1.5202]
[1735198298853,15.99950197,193.75,193.68,15.99950197]
[1735198299347,20.0,193.72,193.66,17.51970197]
[1735198301655,20.0,193.72,193.68,15.99950197]
[1735198302653,20.0,193.74,193.68,15.99950197]
[1735198303243,20.0,193.74,193.66,1.5202]
[1735198303447,20.0,193.74,193.7,15.99950197]
[1735198303829,20.0,193.73,193.63,12.911]
[1735198304045,20.0,193.73,193.67,15.99950197]
[1735198304551,20.0,193.73,193.69,15.99950197]
[1735198304722,20.0,193.76,193.69,15.99950197]
[1735198305347,20.0,193.74,193.69,15.99950197]
[1735198305955,20.0,193.74,193.67,17.59760197]
[1735198306120,20.0,193.72,193.67,1.5981]
[1735198306532,20.0,193.72,193.65,15.99950197]
[1735198306729,35.99950197,193.73,193.65,15.99950197]
[1735198306923,15.99950197,193.71,193.62,1.5981]
[1735198307134,15.99950197,193.71,193.63,15.99950197]
[1735198307352,23.776884,193.72,193.65,15.99950197]
[1735198307659,20.0,193.73,193.65,15.99950197]
[1735198307860,15.99950197,193.76,193.69,15.99950197]
[1735198309149,15.99950197,193.76,193.67,15.99950197]
[1735198312353,15.99950197,193.76,193.69,15.99950197]
[1735198312866,35.99950197,193.78,193.69,15.99950197]
[1735198313158,15.99950197,193.78,193.71,15.99950197]
[1735198314365,15.99950197,193.8,193.72,16.12499197]
[1735198314662,1.5292,193.85,193.7,2.3721896]
[1735198314856,15.99950197,193.79,193.71,15.99950197]
[1735198315162,14.4263,193.85,193.72,15.99950197]
[1735198315163,15.99950197,193.8,193.72,15.99950197]
[1735198315662,15.99950197,193.8,193.73,15.99950197]
[1735198316228,10.23705522,193.8,193.72,10.23705522]
[1735198316846,10.23705522,193.79,193.72,10.23705522]
[1735198317258,10.23705522,193.78,193.7,1.5981]
[1735198317468,10.23705522,193.78,193.7,11.83515522]
[1735198318141,10.23705522,193.77,193.7,1.5981]
[1735198318346,10.23705522,193.77,193.7,11.83515522]
[1735198319172,20.0,193.74,193.65,2.41568135]
[1735198319369,20.0,193.74,193.67,10.23705522]
[1735198319370,10.23705522,193.73,193.67,10.23705522]
[1735198319572,20.0,193.7,193.65,1.6414]
[1735198319745,10.23705522,193.71,193.63,10.23705522]
[1735198320240,16.01008061,193.71,193.64,16.01008061]
[1735198320440,16.01008061,193.71,193.63,16.01008061]
[1735198320946,16.01008061,193.7,193.62,16.01008061]
[1735198321464,16.01008061,193.71,193.64,16.01008061]
[1735198321765,16.01008061,193.71,193.61,0.12549]
[1735198321766,36.01008061,193.74,193.66,16.01008061]
[1735198322369,16.01008061,193.73,193.65,16.01008061]
[1735198322539,16.01008061,193.71,193.64,16.01008061]
[1735198322745,16.01008061,193.69,193.62,16.01008061]
[1735198323056,16.01008061,193.7,193.62,16.01008061]
[1735198323353,16.01008061,193.7,193.63,16.01008061]
[1735198323557,16.01008061,193.69,193.62,16.01008061]
[1735198324064,16.01008061,193.7,193.63,16.01008061]
[1735198324676,36.680684,193.74,193.64,16.01008061]
[1735198324677,16.01008061,193.71,193.64,16.01008061]
[1735198325373,16.01008061,193.7,193.63,16.01008061]
[1735198326262,16.01008061,193.72,193.65,16.01008061]
[1735198326569,16.01008061,193.74,193.67,16.01008061]
[1735198327673,16.01008061,193.73,193.66,16.01008061]
[1735198327842,16.01008061,193.72,193.65,16.01008061]
[1735198328539,16.01008061,193.71,193.64,16.01008061]
[1735198328774,16.01008061,193.71,193.63,16.01008061]
[1735198328955,16.01008061,193.71,193.64,16.01008061]
[1735198329572,12.9025,193.76,193.65,16.01008061]
[1735198329573,16.01008061,193.72,193.65,16.01008061]
[1735198330665,16.01008061,193.72,193.62,0.12549]
[1735198330666,16.01008061,193.69,193.6,1.6414]
[1735198330969,16.01008061,193.69,193.61,16.01008061]
[1735198331269,16.01008061,193.69,193.6,1.6414]
[1735198331457,16.01008061,193.69,193.61,16.01008061]
[1735198331873,16.01008061,193.69,193.6,1.6414]
[1735198332070,16.01008061,193.67,193.6,17.65148061]
[1735198332244,16.01008061,193.65,193.6,1.6414]
[1735198332445,36.01008061,193.67,193.6,16.01008061]
[1735198332651,20.0,193.67,193.59,0.12549]
[1735198332974,6.293,193.74,193.63,16.01008061]
[1735198333172,16.01008061,193.7,193.59,0.12549]
[1735198333372,16.01008061,193.64,193.56,8.04008806]
[1735198333543,22.30308061,193.66,193.58,16.01008061]
[1735198333748,20.0,193.69,193.64,16.01008061]
[1735198333972,23.86768061,193.72,193.64,16.01008061]
[1735198334166,7.8576,193.72,193.59,0.12549]
[1735198334470,16.01008061,193.7,193.62,16.01008061]
[1735198334654,16.01008061,193.69,193.62,16.01008061]
[1735198334853,7.8576,193.72,193.64,16.01008061]
[1735198335041,23.86768061,193.72,193.64,16.01008061]
[1735198335245,23.86768061,193.72,193.65,16.01008061]
[1735198335440,7.8576,193.72,193.65,16.01008061]
[1735198335865,16.01008061,193.73,193.65,16.01008061]
[1735198336243,16.01008061,193.74,193.62,0.77442998]
[1735198336445,16.01008061,193.74,193.66,16.01008061]
[1735198337776,16.01008061,193.75,193.67,16.01008061]
[1735198341352,16.01008061,193.79,193.71,16.01008061]
[1735198341773,16.01008061,193.82,193.75,16.01008061]
[1735198341980,16.01008061,193.83,193.76,16.01008061]
[1735198342284,10.23380074,193.83,193.76,10.23380074]
[1735198343182,6.293,193.86,193.76,10.23380074]
[1735198343473,10.23380074,193.84,193.76,5.42810074]
[1735198344292,15.98957353,193.83,193.76,15.98957353]
[1735198344492,15.98957353,193.84,193.77,15.98957353]
[1735198344778,20.0,193.83,193.77,15.98957353]
[1735198344992,15.98957353,193.84,193.76,15.98957353]
[1735198345487,35.98957353,193.83,193.74,1.5974]
[1735198345779,15.98957353,193.81,193.74,17.58697353]
[1735198345980,15.98957353,193.8,193.72,15.98957353]
[1735198346159,15.98957353,193.79,193.71,15.98957353]
[1735198346357,15.98957353,193.8,193.72,15.98957353]
[1735198346573,15.98957353,193.8,193.73,15.98957353]
[1735198346775,6.293,193.86,193.75,15.98957353]
[1735198346949,6.293,193.86,193.77,15.98957353]
[1735198346950,15.98957353,193.84,193.77,15.98957353]
[1735198347152,15.98957353,193.85,193.78,15.98957353]
[1735198347350,15.98957353,193.83,193.75,15.98957353]
[1735198348153,15.98957353,193.82,193.75,15.98957353]
[1735198348358,15.98957353,193.81,193.73,15.98957353]
[1735198348587,15.98957353,193.84,193.77,15.98957353]
[1735198348786,15.98957353,193.85,193.78,15.98957353]
[1735198348986,22.28257353,193.86,193.78,15.98957353]
[1735198349187,6.293,193.86,193.8,15.98957353]
[1735198349369,6.1348,193.91,193.83,15.98957353]
[1735198349679,15.98957353,193.87,193.8,15.98957353]
[1735198350090,15.98957353,193.89,193.81,15.98957353]
[1735198350885,15.98957353,193.88,193.81,15.98957353]
[1735198351193,35.98957353,193.88,193.81,15.98957353]
[1735198352584,15.98957353,193.9,193.82,15.98957353]
[1735198352779,22.12437353,193.91,193.83,15.98957353]
[1735198353175,12.8897,193.96,193.83,15.98957353]
[1735198353384,15.98957353,193.91,193.83,15.98957353]
[1735198354475,15.98957353,193.89,193.82,15.98957353]
[1735198354905,15.98957353,193.9,193.82,15.98957353]
[1735198355102,15.98957353,193.9,193.83,15.98957353]
[1735198356301,15.98957353,193.94,193.86,15.98957353]
[1735198357115,6.1348,193.97,193.88,15.98957353]
[1735198357271,6.1348,193.97,193.9,15.98957353]
[1735198357607,17.53687353,193.98,193.91,15.98957353]
[1735198357911,17.53687353,193.98,193.9,15.98957353]
[1735198358103,6.1348,194.01,193.93,15.98957353]
[1735198358104,15.98957353,194.0,193.93,15.98957353]
[1735198358309,15.98957353,194.02,193.95,15.98957353]
[1735198358602,17.53687353,194.03,193.95,15.98957353]
[1735198358907,17.53687353,194.03,193.96,15.98957353]
[1735198360398,15.98957353,194.05,193.97,15.98957353]
[1735198360913,20.0,194.03,193.99,15.98957353]
[1735198361595,6.1348,194.06,194.0,15.98957353]
[1735198361983,6.1348,194.06,194.01,15.98957353]
[1735198363309,6.1348,194.06,194.0,15.98957353]
[1735198363912,6.1348,194.06,194.01,15.98957353]
[1735198364211,15.98957353,194.11,194.03,15.98957353]
[1735198365514,20.0,194.09,194.03,15.98957353]
[1735198366008,15.98957353,194.11,194.04,15.98957353]
[1735198366207,6.3116,194.12,194.05,15.98957353]
[1735198366412,17.57747353,194.13,194.06,15.98957353]
[1735198366713,15.98957353,194.14,194.06,15.98957353]
[1735198367210,15.98957353,194.14,194.03,0.12549]
[1735198367211,15.98957353,194.12,194.04,15.98957353]
[1735198367408,15.98957353,194.12,194.05,15.98957353]
[1735198368196,15.98957353,194.13,194.06,15.98957353]
[1735198369209,15.98957353,194.09,194.01,1.6567]
[1735198369384,15.98957353,194.08,194.01,15.98957353]
[1735198369586,15.98957353,194.07,194.0,15.98957353]
[1735198371822,15.98957353,194.07,193.99,15.98957353]
[1735198372419,15.98957353,194.02,193.93,2.42976067]
[1735198372621,15.98957353,194.01,193.93,17.64627353]
[1735198372793,15.98957353,194.0,193.92,15.98957353]
[1735198373320,15.98957353,193.99,193.92,15.98957353]
[1735198373697,15.98957353,193.99,193.91,15.98957353]
[1735198374398,15.98957353,193.98,193.9,12.8926]
[1735198374602,15.98957353,193.98,193.9,28.88217353]
[1735198375119,15.98957353,193.98,193.9,15.98957353]
[1735198375426,15.98957353,193.96,193.9,15.98957353]
[1735198375590,15.98957353,193.96,193.88,15.98957353]
[1735198376302,15.98957353,193.94,193.86,15.98957353]
[1735198376688,15.98957353,193.95,193.88,15.98957353]
[1735198378020,15.98957353,193.93,193.86,15.98957353]
[1735198378316,13.01269,193.99,193.85,1.6567]
[1735198378317,15.98957353,193.91,193.85,1.6567]
[1735198378615,15.98957353,193.91,193.84,15.98957353]
[1735198378790,15.98957353,193.89,193.82,15.98957353]
[1735198382426,15.98957353,193.84,193.76,15.98957353]
[1735198385071,15.98957353,193.86,193.78,15.98957353]
[1735198385331,6.0088,193.91,193.84,15.98957353]
[1735198386393,15.98957353,193.92,193.84,15.98957353]
[1735198387598,1.5871,193.94,193.82,15.98957353]
[1735198387599,15.98957353,193.9,193.82,15.98957353]
[1735198387930,15.98957353,193.89,193.81,15.98957353]
[1735198388327,15.98957353,193.87,193.79,15.98957353]
[1735198389137,15.98957353,193.85,193.77,15.98957353]
[1735198389440,15.98957353,193.83,193.75,17.50287353]
[1735198392522,15.98957353,193.78,193.71,15.98957353]
[1735198393914,15.98957353,193.76,193.69,15.98957353]
[1735198395044,22.38787353,193.78,193.69,15.98957353]
[1735198396019,15.98957353,193.76,193.69,15.98957353]
[1735198400166,15.98957353,193.76,193.67,15.98957353]
[1735198400328,15.98957353,193.74,193.67,15.98957353]
[1735198400952,6.3983,193.65,193.63,27.19738315]
[1735198401739,15.98957353,193.64,193.63,27.19738315]
[1735198402256,136.62549,193.6,193.53,2.0336376]
[1735198402453,0.12549,193.53,193.49,80.6895132]
[1735198402645,23.776884,193.5,193.49,80.6895132]
[1735198402825,15.98957353,193.51,193.49,80.6895132]
[1735198403026,23.776884,193.5,193.49,80.6895132]
[1735198403230,15.98957353,193.51,193.49,80.6895132]
[1735198403456,23.776884,193.5,193.49,80.6895132]
[1735198403754,23.776884,193.53,193.49,80.6895132]
[1735198403956,20.0,193.57,193.52,15.98957353]
[1735198404123,23.776884,193.56,193.51,25.65531736]
[1735198404323,20.0,193.53,193.49,418.34483056]
[1735198404561,23.776884,193.52,193.49,25.65531736]
[1735198404731,23.776884,193.52,193.48,2.1431082]
[1735198405153,20.12549,193.49,193.48,2.1431082]
[1735198405354,20.0,193.45,193.4,20.2]
[1735198405531,20.0,193.41,193.4,20.2]
[1735198406168,43.776884,193.41,193.4,20.2]
[1735198406331,43.776884,193.41,193.24,13.71289384]
[1735198406530,43.776884,193.41,193.37,25.65531736]
[1735198407050,20.0,193.42,193.36,25.65531736]
[1735198407252,0.12549,193.4,193.36,25.65531736]
[1735198407607,20.0,193.41,193.38,25.65531736]
[1735198407935,20.0,193.45,193.38,25.65531736]
[1735198408131,20.0,193.44,193.4,25.65531736]
[1735198408347,6.3983,193.49,193.42,25.65531736]
[1735198408548,25.65531736,193.52,193.42,25.65531736]
[1735198408755,25.65531736,193.52,193.44,25.65531736]
[1735198409253,25.65531736,193.52,193.38,20.0]
[1735198409465,25.65531736,193.52,193.43,25.65531736]
[1735198409642,0.12549,193.51,193.45,25.65531736]
[1735198409953,25.65531736,193.54,193.45,25.65531736]
[1735198410356,6.0418,193.55,193.47,25.65531736]
[1735198411167,25.65531736,193.56,193.47,25.65531736]
[1735198411375,25.65531736,193.58,193.49,25.65531736]
[1735198411554,25.65531736,193.6,193.51,25.65531736]
[1735198411756,25.65531736,193.6,193.53,25.65531736]
[1735198411950,6.0418,193.61,193.53,25.65531736]
[1735198412677,25.65531736,193.58,193.49,25.65531736]
[1735198413063,20.0,193.55,193.51,25.65531736]
[1735198413271,20.0,193.57,193.53,25.65531736]
[1735198413457,20.0,193.58,193.53,25.65531736]
[1735198413774,25.65531736,193.64,193.55,25.65531736]
[1735198414078,25.65531736,193.64,193.57,25.65531736]
[1735198414471,25.65531736,193.64,193.55,25.65531736]
[1735198414776,0.12549,193.63,193.55,25.65531736]
[1735198415463,23.902374,193.63,193.55,25.65531736]
[1735198416366,20.0,193.6,193.55,25.65531736]
[1735198418871,31.69711736,193.66,193.57,25.65531736]
[1735198419268,0.12549,193.63,193.57,25.65531736]
[1735198419581,0.12549,193.61,193.51,25.65531736]
[1735198419788,25.65531736,193.6,193.51,25.65531736]
[1735198419986,0.12549,193.59,193.51,25.65531736]
[1735198420188,20.0,193.57,193.37,20.8737]
[1735198420485,23.776884,193.54,193.46,25.65531736]
[1735198421376,20.0,193.5,193.37,7.9457]
[1735198421671,23.776884,193.5,193.42,25.65531736]
[1735198422091,25.65531736,193.51,193.42,25.65531736]
[1735198423275,20.0,193.48,193.42,25.65531736]
[1735198424675,20.0,193.48,193.37,7.9457]
[1735198424877,20.0,193.48,193.41,25.65531736]
[1735198425191,6.0418,193.53,193.47,25.65531736]
[1735198425568,6.0418,193.53,193.45,25.65531736]
[1735198427192,25.65531736,193.52,193.45,25.65531736]
[1735198427369,25.65531736,193.52,193.43,25.65531736]
[1735198428893,20.0,193.49,193.43,25.65531736]
[1735198429676,45.65531736,193.5,193.43,25.65531736]
[1735198430003,20.0,193.5,193.43,25.65531736]
[1735198430304,45.65531736,193.5,193.43,25.65531736]
[1735198432610,25.65531736,193.48,193.39,25.65531736]
[1735198432802,25.65531736,193.46,193.39,25.65531736]
[1735198433188,20.0,193.45,193.39,25.65531736]
[1735198433809,25.65531736,193.48,193.41,25.65531736]
[1735198434004,20.0,193.47,193.41,25.65531736]
[1735198435202,20.0,193.47,193.39,25.65531736]
[1735198435504,25.65531736,193.46,193.38,25.65531736]
[1735198436309,25.65531736,193.46,193.33,12.9309]
[1735198436477,25.65531736,193.46,193.36,25.65531736]
[1735198436894,25.65531736,193.46,193.32,8.2313]
[1735198437095,25.65531736,193.46,193.37,25.65531736]
[1735198437681,13.04869,193.45,193.37,25.65531736]
[1735198437874,25.65531736,193.44,193.35,25.65531736]
[1735198438183,25.65531736,193.46,193.37,25.65531736]
[1735198438707,25.65531736,193.46,193.35,25.65531736]
[1735198440209,16.05967651,193.45,193.34,16.05967651]
[1735198440413,16.05967651,193.45,193.36,16.05967651]
[1735198440593,50.49017651,193.48,193.36,16.05967651]
[1735198440785,16.05967651,193.46,193.36,16.05967651]
[1735198442620,20.0,193.42,193.33,16.05967651]
[1735198442904,6.1548,193.45,193.37,16.05967651]
[1735198443202,17.56897651,193.48,193.37,16.05967651]
[1735198443410,6.1548,193.49,193.31,0.90118635]
[1735198443411,6.1548,193.49,193.41,16.05967651]
[1735198443612,6.1548,193.49,193.43,16.05967651]
[1735198443797,16.05967651,193.51,193.43,16.05967651]
[1735198444314,1.5083,193.52,193.43,16.05967651]
[1735198444492,16.05967651,193.53,193.45,16.05967651]
[1735198446099,6.1548,193.54,193.45,16.05967651]
[1735198446431,1.5083,193.57,193.48,25.66621054]
[1735198446432,25.66621054,193.57,193.48,25.66621054]
[1735198446777,25.66621054,193.57,193.5,25.66621054]
[1735198446978,25.66621054,193.57,193.49,25.66621054]
[1735198447393,25.66621054,193.58,193.5,25.66621054]
[1735198447790,25.66621054,193.6,193.53,25.66621054]
[1735198448077,25.66621054,193.61,193.53,25.66621054]
[1735198448281,1.5083,193.62,193.53,25.66621054]
[1735198448282,25.66621054,193.6,193.53,25.66621054]
[1735198448707,25.66621054,193.59,193.52,25.66621054]
[1735198449321,25.66621054,193.61,193.52,25.66621054]
[1735198449832,25.66621054,193.61,193.54,25.66621054]
[1735198450605,25.66621054,193.63,193.55,25.66621054]
[1735198451202,25.66621054,193.61,193.49,12.9205]
[1735198451510,25.66621054,193.59,193.51,25.66621054]
[1735198452035,25.66621054,193.57,193.49,25.66621054]
[1735198452407,25.66621054,193.57,193.51,25.66621054]
[1735198452719,45.66621054,193.59,193.51,25.66621054]
[1735198452902,20.0,193.59,193.53,25.66621054]
[1735198453304,45.66621054,193.59,193.51,25.66621054]
[1735198454722,25.66621054,193.57,193.49,25.66621054]
[1735198455201,25.66621054,193.57,193.47,25.66621054]
[1735198455404,45.66621054,193.55,193.47,25.66621054]
[1735198456621,25.66621054,193.53,193.45,25.66621054]
[1735198459841,25.66621054,193.55,193.47,25.66621054]
[1735198461331,27.27551054,193.57,193.49,25.66621054]
[1735198463536,25.66621054,193.57,193.49,25.66621054]
[1735198465657,25.66621054,193.52,193.43,25.66621054]
[1735198466957,25.66621054,193.52,193.45,25.66621054]
[1735198467257,25.66621054,193.54,193.47,25.66621054]
[1735198467439,19.0067,193.58,193.49,25.66621054]
[1735198467440,25.66621054,193.56,193.49,25.66621054]
[1735198468259,22.12592451,193.58,193.51,16.03432451]
[1735198468553,6.0916,193.58,193.52,16.03432451]
[1735198468756,1.6093,193.62,193.55,16.03432451]
[1735198468921,22.69312451,193.63,193.56,16.03432451]
[1735198469127,6.6588,193.63,193.56,16.03432451]
[1735198469964,16.03432451,193.64,193.56,16.03432451]
[1735198470632,16.03432451,193.63,193.56,16.03432451]
[1735198471762,20.0,193.6,193.56,16.03432451]
[1735198472253,20.0,193.6,193.53,16.03432451]
[1735198472429,20.0,193.57,193.52,16.03432451]
[1735198472754,20.0,193.55,193.5,16.03432451]
[1735198472949,20.0,193.55,193.48,16.03432451]
[1735198473337,20.0,193.53,193.48,16.03432451]
[1735198473728,20.0,193.53,193.46,1.5364]
[1735198473729,20.0,193.51,193.4,1.5364]
[1735198473934,20.0,193.51,193.46,16.03432451]
[1735198477459,16.03432451,193.54,193.48,16.03432451]
[1735198479567,16.03432451,193.54,193.4,1.5364]
[1735198479568,16.03432451,193.5,193.4,1.5364]
[1735198479867,16.03432451,193.5,193.42,16.03432451]
[1735198480173,20.0,193.47,193.4,16.03432451]
[1735198484042,16.03432451,193.46,193.38,16.03432451]
[1735198484246,16.03432451,193.44,193.36,16.03432451]
[1735198485162,16.03432451,193.46,193.38,16.03432451]
[1735198485671,21.6465,193.47,193.4,16.03432451]
[1735198485842,6.2713,193.49,193.42,16.03432451]
[1735198486449,22.30562451,193.49,193.41,16.03432451]
[1735198486644,6.2713,193.49,193.42,16.03432451]
[1735198487276,6.2713,193.49,193.43,16.03432451]
[1735198487659,22.30562451,193.49,193.38,23.776884]
[1735198487861,6.2713,193.49,193.42,16.03432451]
[1735198488249,6.2713,193.49,193.43,16.03432451]
[1735198489577,6.2713,193.49,193.42,16.03432451]
[1735198494694,16.03432451,193.48,193.4,16.03432451]
[1735198495793,6.2713,193.49,193.37,0.12549]
[1735198495973,20.0,193.49,193.45,16.03432451]
[1735198496587,20.0,193.49,193.43,16.03432451]
[1735198499694,6.2713,193.54,193.47,16.03432451]
[1735198499992,1.5598,193.56,193.49,16.03432451]
[1735198500190,1.5598,193.56,193.5,16.03432451]
[1735198500575,16.03432451,193.58,193.5,16.03432451]
[1735198500777,26.91255349,193.59,193.51,16.03432451]
[1735198500978,20.0,193.56,193.49,16.03432451]
[1735198502602,16.03432451,193.53,193.45,16.03432451]
[1735198503812,22.17452451,193.55,193.47,16.03432451]
[1735198504009,6.1402,193.55,193.48,16.03432451]
[1735198504209,6.1402,193.55,193.49,16.03432451]
[1735198504398,22.17452451,193.55,193.49,16.03432451]
[1735198504599,16.03432451,193.53,193.47,16.03432451]
[1735198504798,16.03432451,193.53,193.45,16.03432451]
[1735198505310,16.03432451,193.51,193.43,16.03432451]
[1735198506404,16.03432451,193.49,193.41,16.03432451]
[1735198507419,16.03432451,193.47,193.41,16.03432451]
[1735198508114,20.0,193.44,193.37,16.03432451]
[1735198508706,20.0,193.43,193.36,16.03432451]
[1735198509420,36.03432451,193.44,193.36,16.03432451]
[1735198509595,16.03432451,193.43,193.36,16.03432451]
[1735198509791,20.0,193.44,193.37,16.03432451]
[1735198510021,36.03432451,193.44,193.37,16.03432451]
[1735198511422,20.0,193.44,193.37,16.03432451]
[1735198512101,20.0,193.44,193.4,16.03432451]
[1735198512303,6.1402,193.46,193.41,16.03432451]
[1735198512819,6.1402,193.46,193.43,16.03432451]
[1735198513031,21.5598,193.47,193.41,16.03432451]
[1735198513232,21.5598,193.47,193.4,16.03432451]
[1735198513427,1.5598,193.47,193.42,16.03432451]
[1735198513921,16.03432451,193.48,193.41,16.03432451]
[1735198514291,16.03432451,193.48,193.4,16.03432451]
[1735198515124,16.03432451,193.47,193.4,16.03432451]
[1735198515623,20.0,193.44,193.37,16.03432451]
[1735198516002,20.0,193.44,193.38,16.03432451]
[1735198516523,16.03432451,193.45,193.38,16.03432451]
[1735198516727,20.0,193.48,193.43,16.03432451]
[1735198517228,22.22072451,193.51,193.43,16.03432451]
[1735198517522,16.03432451,193.5,193.43,16.03432451]
[1735198517911,22.22072451,193.51,193.44,16.03432451]
[1735198518299,6.1864,193.51,193.45,16.03432451]
[1735198518626,1.6554,193.52,193.46,16.03432451]
[1735198518821,17.68972451,193.52,193.44,16.03432451]
[1735198519120,1.6554,193.52,193.46,16.03432451]
[1735198519728,1.6554,193.52,193.45,16.03432451]
[1735198520920,16.03432451,193.54,193.47,16.03432451]
[1735198521111,16.03432451,193.54,193.46,16.03432451]
[1735198523333,16.03432451,193.54,193.47,16.03432451]
[1735198523826,6.1864,193.56,193.34,1.537]
[1735198523827,16.03432451,193.48,193.34,1.537]
[1735198524026,36.03432451,193.47,193.41,16.03432451]
[1735198524235,20.0,193.47,193.41,16.03432451]
[1735198524432,16.03432451,193.51,193.43,16.03432451]
[1735198524730,20.0,193.48,193.43,16.03432451]
[1735198525319,16.03432451,193.49,193.43,16.03432451]
[1735198525830,1.6554,193.48,193.37,23.776884]
[1735198526032,1.6554,193.48,193.42,16.03432451]
[1735198527241,32.92,193.5,193.42,16.03432451]
[1735198527242,20.0,193.5,193.42,16.03432451]
[1735198527759,20.0,193.5,193.44,16.03432451]
[1735198527925,16.03432451,193.51,193.44,16.03432451]
[1735198528824,17.55772451,193.53,193.46,16.03432451]
[1735198529412,17.55772451,193.53,193.44,16.03432451]
[1735198531417,20.0,193.5,193.44,16.03432451]
[1735198531716,19.0,193.5,193.44,16.03432451]
[1735198533838,19.0,193.5,193.42,16.03432451]
[1735198536633,19.0,193.5,193.44,16.03432451]